[Event "*** Titled Tuesday Blitz"]
[Site "Chess.com"]
[Date "2020.10.20"]
[Round "1"]
[White "Omk124"]
[Black "Ariadna_Atreides"]
[Result "1-0"]
[WhiteElo "2481"]
[BlackElo "2052"]
[TimeControl "180+1"]
[EndTime "10:06:38 PDT"]
[Termination "Omk124 won on time"]

1. e4 {[%clk 0:02:59.6]} 1... c5 {[%clk 0:02:58.4]} 2. Nf3 {[%clk 0:02:59.2]}
2... d6 {[%clk 0:02:58.9]} 3. d4 {[%clk 0:02:58.7]} 3... cxd4 {[%clk 0:02:59.4]}
4. Nxd4 {[%clk 0:02:59.6]} 4... Nf6 {[%clk 0:02:59.5]} 5. Nc3 {[%clk 0:02:58.2]}
5... Nc6 {[%clk 0:02:59.9]} 6. g3 {[%clk 0:02:56.1]} 6... g6 {[%clk 0:02:56.3]}
7. Bg2 {[%clk 0:02:56]} 7... Bg7 {[%clk 0:02:56.8]} 8. Nxc6 {[%clk 0:02:56.1]}
8... bxc6 {[%clk 0:02:55.7]} 9. e5 {[%clk 0:02:57]} 9... Nd5 {[%clk 0:02:42.5]}
10. Nxd5 {[%clk 0:02:54.2]} 10... cxd5 {[%clk 0:02:41.8]} 11. Qxd5 {[%clk
0:02:52.9]} 11... Rb8 {[%clk 0:02:36.2]} 12. exd6 {[%clk 0:02:52.7]} 12... Qxd6
{[%clk 0:02:17.7]} 13. Qxd6 {[%clk 0:02:52.1]} 13... exd6 {[%clk 0:02:17.9]} 14.
c3 {[%clk 0:02:52.7]} 14... Ba6 {[%clk 0:02:11.4]} 15. Bf1 {[%clk 0:02:50.4]}
15... Bb7 {[%clk 0:02:07.5]} 16. Rg1 {[%clk 0:02:48.9]} 16... O-O {[%clk
0:02:05.4]} 17. Bd3 {[%clk 0:02:44.3]} 17... Rfe8+ {[%clk 0:02:02.7]} 18. Be3
{[%clk 0:02:44.6]} 18... Bf3 {[%clk 0:01:59.6]} 19. Rb1 {[%clk 0:02:43.2]} 19...
Bd5 {[%clk 0:01:40.7]} 20. c4 {[%clk 0:02:10.5]} 20... Be4 {[%clk 0:01:35.5]}
21. Kd2 {[%clk 0:01:54.5]} 21... Rxb2+ {[%clk 0:01:25.4]} 22. Rxb2 {[%clk
0:01:53.8]} 22... Bxb2 {[%clk 0:01:26.3]} 23. Rb1 {[%clk 0:01:46.8]} 23... Bf6
{[%clk 0:01:18.7]} 24. Bxa7 {[%clk 0:01:39.4]} 24... d5 {[%clk 0:00:47.9]} 25.
Rb8 {[%clk 0:01:34.5]} 25... Rxb8 {[%clk 0:00:39]} 26. Bxb8 {[%clk 0:01:34.7]}
26... Bf3 {[%clk 0:00:19.9]} 27. c5 {[%clk 0:01:23.9]} 27... d4 {[%clk
0:00:16.6]} 28. Bb5 {[%clk 0:01:21.3]} 28... Be7 {[%clk 0:00:08.5]} 29. c6
{[%clk 0:01:21.3]} 29... Be4 {[%clk 0:00:07.7]} 30. c7 {[%clk 0:01:15.5]} 30...
Bb4+ {[%clk 0:00:06.9]} 31. Ke2 {[%clk 0:01:16]} 31... d3+ {[%clk 0:00:06.8]}
32. Bxd3 {[%clk 0:01:15.3]} 32... Bb7 {[%clk 0:00:05.5]} 33. a4 {[%clk
0:01:11.3]} 33... Kf8 {[%clk 0:00:04.2]} 34. Bb5 {[%clk 0:01:09.7]} 34... Ke7
{[%clk 0:00:03.8]} 35. Kd3 {[%clk 0:01:10.2]} 35... f5 {[%clk 0:00:02.7]} 36.
Kc4 {[%clk 0:01:10.3]} 36... Bd6 {[%clk 0:00:01.8]} 37. a5 {[%clk 0:01:07.4]}
37... Ba8 {[%clk 0:00:01.5]} 38. c8=Q {[%clk 0:01:06.6]} 38... f4 {[%clk
0:00:01.5]} 39. Bxd6+ {[%clk 0:01:06.3]} 1-0

[Event "*** Titled Tuesday Blitz"]
[Site "Chess.com"]
[Date "2020.10.20"]
[Round "1"]
[White "profofchess"]
[Black "ChessQueen"]
[Result "0-1"]
[WhiteElo "2346"]
[BlackElo "2702"]
[TimeControl "180+1"]
[EndTime "10:06:39 PDT"]
[Termination "ChessQueen won on time"]

1. e4 {[%clk 0:03:00.9]} 1... c6 {[%clk 0:02:59.4]} 2. Nc3 {[%clk 0:03:00.2]}
2... d5 {[%clk 0:02:58.8]} 3. Nf3 {[%clk 0:03:00.8]} 3... dxe4 {[%clk
0:02:58.7]} 4. Nxe4 {[%clk 0:03:00.5]} 4... Nf6 {[%clk 0:02:59.3]} 5. Qe2 {[%clk
0:02:59.4]} 5... Nxe4 {[%clk 0:02:59.2]} 6. Qxe4 {[%clk 0:03:00.3]} 6... Nd7
{[%clk 0:02:59.3]} 7. Bc4 {[%clk 0:02:59.9]} 7... Nf6 {[%clk 0:02:57.7]} 8. Ne5
{[%clk 0:02:59.8]} 8... e6 {[%clk 0:02:55.2]} 9. Qe2 {[%clk 0:02:59.8]} 9... b5
{[%clk 0:02:53.5]} 10. Bb3 {[%clk 0:02:57.1]} 10... Qc7 {[%clk 0:02:48.6]} 11.
d4 {[%clk 0:02:49.9]} 11... Bd6 {[%clk 0:02:46]} 12. c3 {[%clk 0:02:31.9]} 12...
O-O {[%clk 0:02:44.9]} 13. O-O {[%clk 0:02:01.7]} 13... c5 {[%clk 0:02:43.4]}
14. Be3 {[%clk 0:01:41.2]} 14... a5 {[%clk 0:02:33]} 15. f4 {[%clk 0:01:08]}
15... Bb7 {[%clk 0:02:26.8]} 16. Rae1 {[%clk 0:01:04.7]} 16... cxd4 {[%clk
0:02:17.2]} 17. Bxd4 {[%clk 0:01:04.3]} 17... Bc5 {[%clk 0:02:13.9]} 18. Bxc5
{[%clk 0:00:52.5]} 18... Qxc5+ {[%clk 0:02:13.5]} 19. Kh1 {[%clk 0:00:53.1]}
19... a4 {[%clk 0:02:00.9]} 20. Bc2 {[%clk 0:00:52.5]} 20... a3 {[%clk
0:02:00.4]} 21. f5 {[%clk 0:00:44.6]} 21... axb2 {[%clk 0:01:47.8]} 22. fxe6
{[%clk 0:00:44.4]} 22... fxe6 {[%clk 0:01:48]} 23. Rxf6 {[%clk 0:00:31.1]} 23...
Rxf6 {[%clk 0:01:43.8]} 24. Nd7 {[%clk 0:00:19.4]} 24... Qg5 {[%clk 0:01:13.6]}
25. Nxf6+ {[%clk 0:00:19.1]} 25... gxf6 {[%clk 0:01:13.9]} 26. Qxe6+ {[%clk
0:00:16]} 26... Kh8 {[%clk 0:01:14.1]} 27. Be4 {[%clk 0:00:14.7]} 27... Bxe4
{[%clk 0:01:00.8]} 28. Qxe4 {[%clk 0:00:14.7]} 28... Rg8 {[%clk 0:01:00.7]} 29.
h3 {[%clk 0:00:09.6]} 29... Qd2 {[%clk 0:00:58.7]} 30. Rb1 {[%clk 0:00:05.9]}
30... Qxc3 {[%clk 0:00:52.6]} 31. Kh2 {[%clk 0:00:05.3]} 31... b4 {[%clk
0:00:42]} 32. Qf5 {[%clk 0:00:05.4]} 32... Qg3+ {[%clk 0:00:40.5]} 0-1

[Event "*** Titled Tuesday Blitz"]
[Site "Chess.com"]
[Date "2020.10.20"]
[Round "1"]
[White "barriochess"]
[Black "CheckThis4"]
[Result "0-1"]
[WhiteElo "2261"]
[BlackElo "2580"]
[TimeControl "180+1"]
[EndTime "10:06:39 PDT"]
[Termination "CheckThis4 won by resignation"]

1. d4 {[%clk 0:02:56.5]} 1... d5 {[%clk 0:02:58.7]} 2. c4 {[%clk 0:02:52.7]}
2... e5 {[%clk 0:02:58.4]} 3. dxe5 {[%clk 0:02:49.9]} 3... d4 {[%clk 0:02:58.9]}
4. Nf3 {[%clk 0:02:48.6]} 4... Nc6 {[%clk 0:02:59.1]} 5. g3 {[%clk 0:02:46.7]}
5... Nge7 {[%clk 0:02:57.6]} 6. Bg2 {[%clk 0:02:45.1]} 6... Be6 {[%clk
0:02:57.3]} 7. Nbd2 {[%clk 0:02:40.6]} 7... Qd7 {[%clk 0:02:57.1]} 8. O-O {[%clk
0:02:38.2]} 8... Bh3 {[%clk 0:02:55.2]} 9. a3 {[%clk 0:02:30.4]} 9... Bxg2
{[%clk 0:02:41]} 10. Kxg2 {[%clk 0:02:31.3]} 10... Ng6 {[%clk 0:02:40.4]} 11. b4
{[%clk 0:02:26.2]} 11... a5 {[%clk 0:02:23.9]} 12. b5 {[%clk 0:02:13.7]} 12...
Ncxe5 {[%clk 0:02:23.7]} 13. Bb2 {[%clk 0:02:12.9]} 13... Bc5 {[%clk 0:01:43.5]}
14. Qc2 {[%clk 0:01:21.4]} 14... O-O {[%clk 0:01:33.6]} 15. Rad1 {[%clk
0:01:14.6]} 15... b6 {[%clk 0:01:25.5]} 16. Nxe5 {[%clk 0:01:13.1]} 16... Nxe5
{[%clk 0:01:25.3]} 17. Nb3 {[%clk 0:01:13.8]} 17... Rad8 {[%clk 0:01:19.8]} 18.
Nxd4 {[%clk 0:01:11.6]} 18... Qg4 {[%clk 0:01:09.1]} 19. h3 {[%clk 0:01:07.3]}
19... Qh5 {[%clk 0:01:04]} 20. Nf5 {[%clk 0:00:54.1]} 20... Rde8 {[%clk
0:00:37.5]} 21. Rd5 {[%clk 0:00:48.4]} 21... f6 {[%clk 0:00:33.6]} 22. g4 {[%clk
0:00:26.6]} 22... Qg6 {[%clk 0:00:26.8]} 23. f4 {[%clk 0:00:23.9]} 23... Nxg4
{[%clk 0:00:26.4]} 24. hxg4 {[%clk 0:00:23.5]} 24... Qxg4+ {[%clk 0:00:26.3]}
25. Ng3 {[%clk 0:00:23.7]} 25... Re3 {[%clk 0:00:23.3]} 26. Rf3 {[%clk
0:00:22.8]} 26... Rfe8 {[%clk 0:00:21.8]} 27. Rd3 {[%clk 0:00:18.2]} 27... Rxe2+
{[%clk 0:00:21.4]} 0-1

[Event "*** Titled Tuesday Blitz"]
[Site "Chess.com"]
[Date "2020.10.20"]
[Round "1"]
[White "GMJustin"]
[Black "chess94cu"]
[Result "0-1"]
[WhiteElo "2248"]
[BlackElo "2569"]
[TimeControl "180+1"]
[EndTime "10:06:40 PDT"]
[Termination "chess94cu won on time"]

1. b4 {[%clk 0:02:54.1]} 1... e5 {[%clk 0:02:57.3]} 2. Bb2 {[%clk 0:02:52.8]}
2... d6 {[%clk 0:02:57.5]} 3. c4 {[%clk 0:02:47.2]} 3... Nf6 {[%clk 0:02:57.5]}
4. e3 {[%clk 0:02:45.5]} 4... g6 {[%clk 0:02:56.3]} 5. Nf3 {[%clk 0:02:36.3]}
5... Bg7 {[%clk 0:02:54.8]} 6. Be2 {[%clk 0:02:31.6]} 6... O-O {[%clk
0:02:53.3]} 7. O-O {[%clk 0:02:30.1]} 7... c6 {[%clk 0:02:51.6]} 8. d4 {[%clk
0:02:18.6]} 8... e4 {[%clk 0:02:50.4]} 9. Nfd2 {[%clk 0:02:17.7]} 9... d5 {[%clk
0:02:50.9]} 10. Nc3 {[%clk 0:02:10.3]} 10... h5 {[%clk 0:02:39]} 11. b5 {[%clk
0:01:51]} 11... Bg4 {[%clk 0:02:36.4]} 12. f3 {[%clk 0:01:02.5]} 12... exf3
{[%clk 0:02:30.4]} 13. Bxf3 {[%clk 0:01:02.1]} 13... Bh6 {[%clk 0:02:20.1]} 14.
Re1 {[%clk 0:00:57.2]} 14... Re8 {[%clk 0:02:19.1]} 15. h3 {[%clk 0:00:47.4]}
15... Bxf3 {[%clk 0:02:02.6]} 16. Qxf3 {[%clk 0:00:45.5]} 16... a6 {[%clk
0:01:50.4]} 17. a4 {[%clk 0:00:41.7]} 17... Nbd7 {[%clk 0:01:44.6]} 18. bxc6
{[%clk 0:00:31.8]} 18... bxc6 {[%clk 0:01:45.5]} 19. cxd5 {[%clk 0:00:16.7]}
19... cxd5 {[%clk 0:01:46.4]} 20. Nf1 {[%clk 0:00:14.4]} 20... Nb6 {[%clk
0:01:43.3]} 21. e4 {[%clk 0:00:10.2]} 21... Nc4 {[%clk 0:01:05.9]} 22. e5 {[%clk
0:00:10]} 22... Ne4 {[%clk 0:00:53.4]} 23. Bc1 {[%clk 0:00:09.6]} 23... Bxc1
{[%clk 0:00:35.6]} 24. Raxc1 {[%clk 0:00:09.2]} 24... Nxc3 {[%clk 0:00:36.5]}
25. Rxc3 {[%clk 0:00:08]} 25... Rc8 {[%clk 0:00:32.8]} 26. Ne3 {[%clk
0:00:05.8]} 26... Nd2 {[%clk 0:00:28.8]} 0-1

[Event "*** Titled Tuesday Blitz"]
[Site "Chess.com"]
[Date "2020.10.20"]
[Round "1"]
[White "parnali1611"]
[Black "Artem_Sadovsky"]
[Result "0-1"]
[WhiteElo "2111"]
[BlackElo "2502"]
[TimeControl "180+1"]
[EndTime "10:06:40 PDT"]
[Termination "Artem_Sadovsky won by resignation"]

1. d4 {[%clk 0:02:18.2]} 1... g6 {[%clk 0:02:22.1]} 2. c4 {[%clk 0:02:16.2]}
2... d6 {[%clk 0:02:21.5]} 3. Nc3 {[%clk 0:02:13.1]} 3... Bg7 {[%clk 0:02:17.3]}
4. Nf3 {[%clk 0:02:10.9]} 4... e5 {[%clk 0:02:14.2]} 5. dxe5 {[%clk 0:02:09.6]}
5... dxe5 {[%clk 0:02:15.1]} 6. Qxd8+ {[%clk 0:02:05.7]} 6... Kxd8 {[%clk
0:02:16]} 7. e4 {[%clk 0:01:59.8]} 7... Be6 {[%clk 0:02:15.1]} 8. Bg5+ {[%clk
0:01:58.2]} 8... f6 {[%clk 0:02:13.6]} 9. O-O-O+ {[%clk 0:01:58.6]} 9... Nd7
{[%clk 0:02:14.3]} 10. Bh4 {[%clk 0:01:34]} 10... Ne7 {[%clk 0:02:07.1]} 11. c5
{[%clk 0:01:31.3]} 11... c6 {[%clk 0:02:04.2]} 12. Ne1 {[%clk 0:01:21.1]} 12...
Kc7 {[%clk 0:02:00.1]} 13. Nd3 {[%clk 0:01:18.8]} 13... Bc4 {[%clk 0:01:40.3]}
14. b4 {[%clk 0:01:14.3]} 14... a5 {[%clk 0:01:39]} 15. a3 {[%clk 0:01:12.1]}
15... axb4 {[%clk 0:01:34.4]} 16. axb4 {[%clk 0:01:09.6]} 16... Ra3 {[%clk
0:01:24.4]} 17. Kb2 {[%clk 0:01:04]} 17... Rha8 {[%clk 0:01:24.7]} 18. Be2
{[%clk 0:00:56.5]} 18... Rb3+ {[%clk 0:00:54.7]} 19. Kc2 {[%clk 0:00:56]} 19...
Raa3 {[%clk 0:00:55.5]} 20. Nc1 {[%clk 0:00:28.2]} 20... Rxc3+ {[%clk
0:00:51.8]} 21. Kb2 {[%clk 0:00:21.7]} 21... Bxe2 {[%clk 0:00:44.7]} 22. Nxe2
{[%clk 0:00:21.6]} 22... Rcb3+ {[%clk 0:00:44.6]} 23. Kc2 {[%clk 0:00:21.5]}
23... Rxb4 {[%clk 0:00:45]} 24. f3 {[%clk 0:00:20.6]} 24... Nxc5 {[%clk
0:00:38.1]} 25. Nc3 {[%clk 0:00:18.2]} 25... Rc4 {[%clk 0:00:33.5]} 26. Be1
{[%clk 0:00:18.6]} 26... b5 {[%clk 0:00:29.6]} 27. Kb2 {[%clk 0:00:17.7]} 27...
Rb3+ {[%clk 0:00:30.3]} 28. Kc2 {[%clk 0:00:17.7]} 28... b4 {[%clk 0:00:30.6]}
29. Ra1 {[%clk 0:00:14.6]} 29... Nc8 {[%clk 0:00:27.6]} 0-1

[Event "*** Titled Tuesday Blitz"]
[Site "Chess.com"]
[Date "2020.10.20"]
[Round "1"]
[White "abhidabhi"]
[Black "zverr1"]
[Result "1/2-1/2"]
[WhiteElo "2799"]
[BlackElo "2408"]
[TimeControl "180+1"]
[EndTime "10:06:42 PDT"]
[Termination "Game drawn by repetition"]

1. Nf3 {[%clk 0:03:00.9]} 1... Nf6 {[%clk 0:02:59.3]} 2. g3 {[%clk 0:03:01.4]}
2... g6 {[%clk 0:02:59.8]} 3. b3 {[%clk 0:03:01.6]} 3... Bg7 {[%clk 0:03:00.7]}
4. Bb2 {[%clk 0:03:02.5]} 4... O-O {[%clk 0:03:00.4]} 5. c4 {[%clk 0:03:03.2]}
5... d6 {[%clk 0:02:56.4]} 6. d4 {[%clk 0:03:02.5]} 6... Nbd7 {[%clk 0:02:56]}
7. Bg2 {[%clk 0:03:02.2]} 7... Re8 {[%clk 0:02:52.8]} 8. O-O {[%clk 0:03:01.5]}
8... c6 {[%clk 0:02:50.3]} 9. Nc3 {[%clk 0:03:00.7]} 9... e5 {[%clk 0:02:49.4]}
10. dxe5 {[%clk 0:02:58]} 10... dxe5 {[%clk 0:02:50.3]} 11. Ng5 {[%clk
0:02:51.1]} 11... Nc5 {[%clk 0:02:45.8]} 12. Qxd8 {[%clk 0:02:45.3]} 12... Rxd8
{[%clk 0:02:46.7]} 13. Rfd1 {[%clk 0:02:42.9]} 13... Bf5 {[%clk 0:02:41.9]} 14.
b4 {[%clk 0:02:31.3]} 14... Ne6 {[%clk 0:02:34.4]} 15. Nf3 {[%clk 0:01:50.4]}
15... Nd4 {[%clk 0:01:38.1]} 16. Nxd4 {[%clk 0:01:24.9]} 16... exd4 {[%clk
0:01:33.6]} 17. Na4 {[%clk 0:01:25]} 17... Bc2 {[%clk 0:01:24.4]} 18. Nc5 {[%clk
0:01:23.1]} 18... Bxd1 {[%clk 0:01:23.8]} 19. Rxd1 {[%clk 0:01:22.6]} 19... Rab8
{[%clk 0:01:10.4]} 20. h3 {[%clk 0:01:01.1]} 20... Nd7 {[%clk 0:01:08.1]} 21.
Nb3 {[%clk 0:00:59.2]} 21... Nb6 {[%clk 0:01:06.8]} 22. c5 {[%clk 0:00:49.8]}
22... Nd5 {[%clk 0:01:03.9]} 23. a3 {[%clk 0:00:48.3]} 23... Nc3 {[%clk
0:00:55.7]} 24. Rd2 {[%clk 0:00:45.8]} 24... Rd7 {[%clk 0:00:44.1]} 25. Bf3
{[%clk 0:00:45.8]} 25... Rbd8 {[%clk 0:00:43.3]} 26. Nc1 {[%clk 0:00:43.1]}
26... Na4 {[%clk 0:00:35.5]} 27. Nd3 {[%clk 0:00:38.7]} 27... Nxb2 {[%clk
0:00:34.7]} 28. Rxb2 {[%clk 0:00:38.6]} 28... a6 {[%clk 0:00:34.1]} 29. h4
{[%clk 0:00:38]} 29... h5 {[%clk 0:00:33.6]} 30. Kf1 {[%clk 0:00:38]} 30... Ra8
{[%clk 0:00:30.9]} 31. a4 {[%clk 0:00:37.3]} 31... Bf8 {[%clk 0:00:29.1]} 32.
Ne5 {[%clk 0:00:31.8]} 32... Re7 {[%clk 0:00:27.9]} 33. Nd3 {[%clk 0:00:27.2]}
33... Rd7 {[%clk 0:00:27.8]} 34. Ne5 {[%clk 0:00:26.6]} 34... Re7 {[%clk
0:00:28.3]} 35. Nd3 {[%clk 0:00:25]} 35... Rd7 {[%clk 0:00:28.5]} 1/2-1/2

[Event "*** Titled Tuesday Blitz"]
[Site "Chess.com"]
[Date "2020.10.20"]
[Round "1"]
[White "DenisQ"]
[Black "ural58"]
[Result "1-0"]
[WhiteElo "2672"]
[BlackElo "2335"]
[TimeControl "180+1"]
[EndTime "10:06:42 PDT"]
[Termination "DenisQ won on time"]

1. Nf3 {[%clk 0:03:00.9]} 1... d5 {[%clk 0:02:49.3]} 2. c4 {[%clk 0:02:59.8]}
2... dxc4 {[%clk 0:02:48.2]} 3. Na3 {[%clk 0:02:58]} 3... c5 {[%clk 0:02:45.1]}
4. Nxc4 {[%clk 0:02:57.5]} 4... b5 {[%clk 0:02:40.6]} 5. Na3 {[%clk 0:02:30.7]}
5... a6 {[%clk 0:02:37.6]} 6. e3 {[%clk 0:02:27.3]} 6... Nf6 {[%clk 0:02:36.8]}
7. b3 {[%clk 0:02:25.2]} 7... e6 {[%clk 0:02:35.5]} 8. Bb2 {[%clk 0:02:25.2]}
8... Bb7 {[%clk 0:02:35.3]} 9. Be2 {[%clk 0:02:25.2]} 9... Nbd7 {[%clk
0:02:35.4]} 10. O-O {[%clk 0:02:25.8]} 10... Be7 {[%clk 0:02:36.1]} 11. Nc2
{[%clk 0:02:25.2]} 11... O-O {[%clk 0:02:35.3]} 12. a4 {[%clk 0:02:23.4]} 12...
b4 {[%clk 0:02:28.6]} 13. d3 {[%clk 0:02:19.3]} 13... Nd5 {[%clk 0:02:25.5]} 14.
e4 {[%clk 0:02:08.6]} 14... Nc3 {[%clk 0:02:16.7]} 15. Bxc3 {[%clk 0:02:08.2]}
15... bxc3 {[%clk 0:02:17.6]} 16. Ne3 {[%clk 0:02:07.3]} 16... Bf6 {[%clk
0:02:16.6]} 17. Rc1 {[%clk 0:02:06.7]} 17... Qa5 {[%clk 0:02:11.3]} 18. Qc2
{[%clk 0:02:05.6]} 18... Rab8 {[%clk 0:01:00.2]} 19. Nd1 {[%clk 0:02:04.3]}
19... Bc6 {[%clk 0:00:51.4]} 20. Nxc3 {[%clk 0:02:03.5]} 20... Qb4 {[%clk
0:00:51.4]} 21. Nd2 {[%clk 0:02:02.8]} 21... Rfc8 {[%clk 0:00:39.2]} 22. Na2
{[%clk 0:01:57.6]} 22... Qa3 {[%clk 0:00:29.6]} 23. Rb1 {[%clk 0:01:56.6]} 23...
Nb6 {[%clk 0:00:22.5]} 24. Rfd1 {[%clk 0:01:46.5]} 24... c4 {[%clk 0:00:10.1]}
25. Nxc4 {[%clk 0:01:38.5]} 25... Nxc4 {[%clk 0:00:10.3]} 26. dxc4 {[%clk
0:01:38.6]} 26... Bxe4 {[%clk 0:00:08.7]} 27. Qxe4 {[%clk 0:01:37]} 27... Qxa2
{[%clk 0:00:09.3]} 28. c5 {[%clk 0:01:13.4]} 28... a5 {[%clk 0:00:09.1]} 29. c6
{[%clk 0:01:08.3]} 29... Rc7 {[%clk 0:00:08.9]} 30. Bb5 {[%clk 0:01:06.7]} 30...
g6 {[%clk 0:00:07.9]} 31. Rd7 {[%clk 0:01:05]} 31... Rbc8 {[%clk 0:00:07.9]} 32.
Rbd1 {[%clk 0:01:04.1]} 32... Kg7 {[%clk 0:00:07.7]} 33. g3 {[%clk 0:01:02]}
33... h5 {[%clk 0:00:07.4]} 34. h4 {[%clk 0:01:01.2]} 34... Qa3 {[%clk
0:00:06.9]} 35. Qxe6 {[%clk 0:00:59]} 35... Rxd7 {[%clk 0:00:02.8]} 36. Rxd7
{[%clk 0:00:57.1]} 36... Rf8 {[%clk 0:00:02.9]} 37. Bc4 {[%clk 0:00:54.9]} 37...
Qc1+ {[%clk 0:00:01.3]} 38. Kg2 {[%clk 0:00:54.4]} 1-0

[Event "*** Titled Tuesday Blitz"]
[Site "Chess.com"]
[Date "2020.10.20"]
[Round "1"]
[White "queen_iryna"]
[Black "Jungle_Jaguar"]
[Result "1-0"]
[WhiteElo "2314"]
[BlackElo "2609"]
[TimeControl "180+1"]
[EndTime "10:06:43 PDT"]
[Termination "queen_iryna won by resignation"]

1. e4 {[%clk 0:03:00.9]} 1... c5 {[%clk 0:02:58.8]} 2. Nf3 {[%clk 0:03:00.2]}
2... d6 {[%clk 0:02:59.2]} 3. Bb5+ {[%clk 0:02:58.8]} 3... Nd7 {[%clk
0:02:56.5]} 4. O-O {[%clk 0:02:56.5]} 4... a6 {[%clk 0:02:56.1]} 5. Bxd7+ {[%clk
0:02:54.6]} 5... Bxd7 {[%clk 0:02:54.8]} 6. d4 {[%clk 0:02:46.7]} 6... cxd4
{[%clk 0:02:52.9]} 7. Qxd4 {[%clk 0:02:47.6]} 7... Nf6 {[%clk 0:02:53.6]} 8. a4
{[%clk 0:02:46.2]} 8... e5 {[%clk 0:02:45.5]} 9. Qd3 {[%clk 0:02:42.5]} 9... Rc8
{[%clk 0:02:41.3]} 10. c4 {[%clk 0:02:42.3]} 10... Be7 {[%clk 0:02:39.8]} 11.
Nc3 {[%clk 0:02:41.6]} 11... O-O {[%clk 0:02:34.6]} 12. h3 {[%clk 0:02:34.5]}
12... h6 {[%clk 0:02:30.3]} 13. Be3 {[%clk 0:02:33.6]} 13... Be6 {[%clk
0:02:28.7]} 14. b3 {[%clk 0:02:32.6]} 14... Qc7 {[%clk 0:02:28.4]} 15. Ne1
{[%clk 0:02:22.7]} 15... Rfd8 {[%clk 0:02:04.4]} 16. Nc2 {[%clk 0:02:22]} 16...
Bf8 {[%clk 0:02:00]} 17. Qe2 {[%clk 0:02:13]} 17... Nd7 {[%clk 0:01:52.9]} 18.
Nb4 {[%clk 0:02:05.8]} 18... Nc5 {[%clk 0:01:51.2]} 19. Nbd5 {[%clk 0:02:04.1]}
19... Qc6 {[%clk 0:01:38.6]} 20. Qc2 {[%clk 0:01:34.6]} 20... a5 {[%clk
0:01:37.4]} 21. f3 {[%clk 0:01:28.5]} 21... Re8 {[%clk 0:01:23.6]} 22. Rab1
{[%clk 0:01:23.4]} 22... Kh8 {[%clk 0:01:12.3]} 23. Rfd1 {[%clk 0:01:21.3]}
23... g6 {[%clk 0:01:10.2]} 24. Qf2 {[%clk 0:01:20.2]} 24... Bg7 {[%clk
0:01:06.8]} 25. Qh4 {[%clk 0:01:06.1]} 25... Kh7 {[%clk 0:00:30.6]} 26. Ne7
{[%clk 0:01:03.7]} 26... Qd7 {[%clk 0:00:26.3]} 27. Nxc8 {[%clk 0:01:02.7]}
27... Rxc8 {[%clk 0:00:27.2]} 28. Nd5 {[%clk 0:01:01]} 28... Bxd5 {[%clk
0:00:23]} 29. Rxd5 {[%clk 0:01:00]} 29... Qe6 {[%clk 0:00:20.6]} 30. Bxc5 {[%clk
0:00:59.2]} 30... dxc5 {[%clk 0:00:20]} 31. Rbd1 {[%clk 0:00:58.1]} 31... Rc6
{[%clk 0:00:19.9]} 32. Qd8 {[%clk 0:00:53.2]} 32... Rb6 {[%clk 0:00:16.4]} 33.
Rd6 {[%clk 0:00:47.8]} 33... Bf6 {[%clk 0:00:12.6]} 34. Rxe6 {[%clk 0:00:44.4]}
34... Bxd8 {[%clk 0:00:12]} 35. Rxb6 {[%clk 0:00:44.1]} 35... Bxb6 {[%clk
0:00:12.4]} 36. Rd7 {[%clk 0:00:43.8]} 1-0

[Event "*** Titled Tuesday Blitz"]
[Site "Chess.com"]
[Date "2020.10.20"]
[Round "1"]
[White "kasparicy"]
[Black "Harsha_Bharathakoti"]
[Result "0-1"]
[WhiteElo "2387"]
[BlackElo "2776"]
[TimeControl "180+1"]
[EndTime "10:06:45 PDT"]
[Termination "Harsha_Bharathakoti won by resignation"]

1. e4 {[%clk 0:02:57.4]} 1... c6 {[%clk 0:02:59.6]} 2. d4 {[%clk 0:02:55.1]}
2... d5 {[%clk 0:03:00.5]} 3. f3 {[%clk 0:02:55.6]} 3... dxe4 {[%clk 0:02:59.8]}
4. fxe4 {[%clk 0:02:55.2]} 4... e5 {[%clk 0:03:00.2]} 5. Nf3 {[%clk 0:02:55.5]}
5... Bg4 {[%clk 0:02:51.6]} 6. Bc4 {[%clk 0:02:52.4]} 6... Nd7 {[%clk
0:02:51.6]} 7. O-O {[%clk 0:02:42.7]} 7... Ngf6 {[%clk 0:02:42.3]} 8. dxe5
{[%clk 0:02:36]} 8... Bxf3 {[%clk 0:01:47.8]} 9. Bxf7+ {[%clk 0:01:52.5]} 9...
Kxf7 {[%clk 0:01:41.6]} 10. Qxf3 {[%clk 0:01:51.5]} 10... Nxe5 {[%clk
0:01:33.6]} 11. Qh5+ {[%clk 0:01:46.7]} 11... Ng6 {[%clk 0:01:31.3]} 12. Bg5
{[%clk 0:01:38.4]} 12... Qd4+ {[%clk 0:01:10.6]} 13. Kh1 {[%clk 0:01:37.9]}
13... Bc5 {[%clk 0:00:53.8]} 14. Nc3 {[%clk 0:01:35.4]} 14... Qg1+ {[%clk
0:00:52.6]} 15. Rxg1 {[%clk 0:01:32.8]} 15... Nxh5 {[%clk 0:00:53.1]} 16. Rgf1+
{[%clk 0:01:32.4]} 16... Ke6 {[%clk 0:00:50.2]} 17. e5 {[%clk 0:01:15.4]} 17...
Rhf8 {[%clk 0:00:44]} 18. Ne4 {[%clk 0:01:08.7]} 18... Be7 {[%clk 0:00:44]} 19.
Bd2 {[%clk 0:00:49.8]} 19... Rxf1+ {[%clk 0:00:40]} 20. Rxf1 {[%clk 0:00:50.7]}
20... Rf8 {[%clk 0:00:39.9]} 21. Re1 {[%clk 0:00:49.3]} 21... Nhf4 {[%clk
0:00:38.2]} 22. Bc3 {[%clk 0:00:31.4]} 22... Nd5 {[%clk 0:00:37.6]} 23. Bd4
{[%clk 0:00:30.8]} 23... Rd8 {[%clk 0:00:32.2]} 24. g3 {[%clk 0:00:29.3]} 24...
b6 {[%clk 0:00:28.1]} 25. a3 {[%clk 0:00:27.3]} 25... c5 {[%clk 0:00:26.1]} 26.
Bf2 {[%clk 0:00:27.7]} 26... Nxe5 {[%clk 0:00:26.1]} 27. c4 {[%clk 0:00:22.7]}
27... Nf6 {[%clk 0:00:18]} 28. Ng5+ {[%clk 0:00:21.9]} 28... Kf5 {[%clk
0:00:18.7]} 29. Rxe5+ {[%clk 0:00:22]} 29... Kxe5 {[%clk 0:00:18.8]} 30. Nf7+
{[%clk 0:00:22.9]} 30... Ke4 {[%clk 0:00:19.5]} 31. Nxd8 {[%clk 0:00:23.8]}
31... Bxd8 {[%clk 0:00:20.4]} 32. Kg2 {[%clk 0:00:24.5]} 32... Kd3 {[%clk
0:00:20.8]} 33. Kf3 {[%clk 0:00:24.3]} 33... Kxc4 {[%clk 0:00:20.9]} 0-1